bitfinex/quotes_SOLUSD_20250123
["timestamp","ask_amount","ask_price","bid_price","bid_amount"]
[1737664437667,2.03,258.0,257.89,30.67175536]
[1737664438183,2.03,258.0,257.87,34.54965536]
[1737664438380,30.67175536,257.99,257.85,30.67175536]
[1737664438557,30.67175536,257.96,257.82,30.67175536]
[1737664438983,30.67175536,257.94,257.8,30.67175536]
[1737664439171,30.67175536,257.9,257.76,30.67175536]
[1737664439690,30.67175536,257.92,257.78,30.67175536]
[1737664439883,34.54895536,257.92,257.78,30.67175536]
[1737664440195,30.67175536,257.96,257.84,30.67175536]
[1737664440371,30.67175536,257.96,257.78,3.8791]
[1737664440372,36.57765536,258.0,257.86,30.67175536]
[1737664440573,2.03,258.0,257.92,30.67175536]
[1737664440771,2.03,258.0,257.9,30.67175536]
[1737664440972,23.776884,257.99,257.78,3.8791]
[1737664441183,5.906,258.0,257.78,3.8791]
[1737664441490,20.0,257.96,257.73,3.88]
[1737664441681,20.0,257.88,257.56,1.0]
[1737664441879,3.8779,257.87,257.59,1.0]
[1737664442070,30.67175536,257.86,257.73,30.67175536]
[1737664442391,2.03,258.0,257.85,30.67175536]
[1737664442596,2.03,258.0,257.78,1.0]
[1737664442797,2.03,258.0,257.74,1.0]
[1737664442976,5.9061,258.0,257.71,20.0]
[1737664443171,5.9061,258.0,257.73,1.0]
[1737664443172,2.03,258.0,257.73,1.0]
[1737664443371,2.03,258.0,257.76,1.0]
[1737664443590,2.03,258.0,257.91,30.67175536]
[1737664443791,32.70175536,258.0,257.9,3.8774]
[1737664443994,30.67175536,257.94,257.83,3.8785]
[1737664444192,30.67175536,257.92,257.78,30.67175536]
[1737664444502,30.67175536,257.92,257.8,30.67175536]
[1737664444672,30.67175536,257.88,257.76,30.67175536]
[1737664445182,30.67175536,257.88,257.74,30.67175536]
[1737664445375,30.67175536,257.93,257.8,30.67175536]
[1737664446080,30.67175536,257.89,257.76,30.67175536]
[1737664446286,2.03,258.0,257.84,30.67175536]
[1737664446484,2.03,258.0,257.73,13.58]
[1737664446485,2.03,258.0,257.9,30.67175536]
[1737664446778,2.03,258.0,257.97,30.67175536]
[1737664447177,2.03,258.0,257.99,30.67175536]
[1737664447503,30.67175536,258.23,258.02,20.0]
[1737664447800,0.15,258.27,258.12,30.67175536]
[1737664448201,0.15,258.27,258.14,30.67175536]
[1737664448389,0.15,258.27,258.25,30.67175536]
[1737664448588,70.55341517,258.46,258.25,30.67175536]
[1737664448589,68.05351517,258.46,258.28,20.0]
[1737664448772,68.05351517,258.46,258.36,30.67175536]
[1737664449083,30.67175536,258.45,258.34,30.67175536]
[1737664449279,1.0,258.43,258.06,3.875]
[1737664449503,68.05351517,258.46,258.14,1.0]
[1737664449815,68.05351517,258.46,258.16,2.0]
[1737664449974,3.8692,258.45,258.17,3.8734]
[1737664450177,3.8692,258.45,258.18,20.0]
[1737664450392,68.05351517,258.46,258.36,30.67175536]
[1737664450697,13.5422,258.45,258.18,50.67175536]
[1737664450907,13.5422,258.45,258.2,30.67175536]
[1737664450908,30.67175536,258.33,258.2,30.67175536]
[1737664451076,20.0,258.28,257.95,9.6915]
[1737664451272,1.0,258.51,258.03,1.0]
[1737664451501,0.15502481,258.39,258.09,1.0]
[1737664451679,0.15502481,258.39,258.02,1.0]
[1737664451876,3.8702,258.38,258.1,13.5605]
[1737664452199,30.67175536,258.33,258.19,30.67175536]
[1737664452376,30.67175536,258.35,258.23,30.67175536]
[1737664452586,30.67175536,258.37,258.23,30.67175536]
[1737664452803,30.67175536,258.33,258.21,30.67175536]
[1737664453120,30.67175536,258.27,258.13,30.67175536]
[1737664453283,30.67175536,258.27,258.05,30.67175536]
[1737664453284,30.67175536,258.27,258.15,30.67175536]
[1737664453613,30.67175536,258.36,258.23,30.67175536]
[1737664453817,30.67175536,258.39,258.25,30.67175536]
[1737664454116,3.8695,258.43,258.1,3.8744]
[1737664454316,68.05351517,258.46,258.15,2.0]
[1737664454510,68.05351517,258.46,258.23,20.0]
[1737664455095,30.67175536,258.43,258.3,30.67175536]
[1737664455303,30.67175536,258.45,258.32,30.67175536]
[1737664455617,30.67175536,258.43,258.28,30.67175536]
[1737664455788,30.67175536,258.41,258.28,30.67175536]
[1737664455985,30.67175536,258.39,258.26,30.67175536]
[1737664456627,30.67175536,258.45,258.3,30.67175536]
[1737664456795,68.05351517,258.46,258.34,30.67175536]
[1737664456996,30.67175536,258.43,258.3,30.67175536]
[1737664457522,30.67175536,258.44,258.31,30.67175536]
[1737664457691,68.05351517,258.46,258.31,30.67175536]
[1737664457692,30.67175536,258.43,258.31,30.67175536]
[1737664457887,30.67175536,258.39,258.25,30.67175536]
[1737664458119,68.05351517,258.46,258.27,30.67175536]
[1737664458120,30.67175536,258.42,258.27,30.67175536]
[1737664458423,30.67175536,258.31,258.18,34.54485536]
[1737664458601,30.67175536,258.31,258.16,30.67175536]
[1737664458916,30.67175536,258.31,258.09,3.8746]
[1737664458917,30.67175536,258.28,258.09,3.8746]
[1737664459116,20.0,258.24,257.99,3.8761]
[1737664459316,20.0,258.24,257.83,14.2232]
[1737664459317,1.0,258.23,257.88,3.8777]
[1737664459499,1.0,258.26,257.88,3.8777]
[1737664459684,3.7031,258.27,257.88,13.5721]
[1737664459685,23.776884,258.23,257.88,13.5721]
[1737664459886,15.5558,258.19,257.77,29.0956]
[1737664460111,30.67175536,258.06,257.93,30.67175536]
[1737664460302,30.67175536,258.14,258.01,30.67175536]
[1737664460517,30.67175536,258.08,257.79,31.67175536]
[1737664460699,20.0,258.14,257.79,30.67175536]
[1737664461021,20.0,258.09,257.79,30.67175536]
[1737664461190,20.0,258.09,257.77,9.6985]
[1737664461191,12.8376,258.16,257.75,3.8797]
[1737664461389,1.0,258.13,257.75,3.8797]
[1737664461620,3.4979,258.03,257.75,3.8797]
[1737664461823,30.67175536,257.79,257.65,30.67175536]
[1737664461999,30.67175536,257.94,257.78,30.67175536]
[1737664462194,30.67175536,258.0,257.84,30.67175536]
[1737664462424,30.67175536,258.0,257.87,30.67175536]
[1737664462719,2.0,258.02,257.73,3.9429]
[1737664462919,21.0,258.06,257.73,3.9429]
[1737664463127,20.0,258.06,257.73,13.6429]
[1737664463300,1.0,258.05,257.73,3.9429]
[1737664463498,13.5605,258.1,257.73,3.9429]
[1737664463499,3.8744,258.1,257.78,312.0]
[1737664463719,30.67175536,257.95,257.79,30.67175536]
[1737664463908,30.67175536,257.95,257.78,312.0]
[1737664463909,30.67175536,257.99,257.86,30.67175536]
[1737664464115,30.67175536,258.02,257.89,30.67175536]
[1737664464494,30.67175536,258.02,257.82,3.8786]
[1737664464495,30.67175536,257.96,257.82,30.67175536]
[1737664464914,20.0,258.29,257.81,3.8788]
[1737664464915,3.871,258.33,257.91,1.0]
[1737664465119,3.871,258.33,257.81,32.9699]
[1737664465120,30.67175536,258.2,258.06,30.67175536]
[1737664465304,30.67175536,258.17,258.02,30.67175536]
[1737664465618,16.485035,258.58,258.15,30.67175536]
[1737664465922,81.33611517,258.46,258.04,30.0]
[1737664466124,2.0,258.42,258.1,32.4148]
[1737664466309,1.0,258.4,258.1,32.4148]
[1737664466919,68.05351517,258.46,258.35,30.67175536]
[1737664467109,1.0,258.4,258.31,30.67175536]
[1737664467296,1.0,258.4,258.33,30.67175536]
[1737664467501,1.0,258.4,258.31,30.67175536]
[1737664467703,1.0,258.4,258.27,312.0]
[1737664467704,1.0,258.33,258.27,312.0]
[1737664467903,1.0,258.31,258.06,13.5626]
[1737664468098,1.0,258.31,257.91,194.41088772]
[1737664468099,1.0,258.18,257.82,13.2]
[1737664468404,1.0,258.15,257.84,19.83045634]
[1737664468607,2.0,258.24,257.83,13.5748]
[1737664468810,1.0,258.21,258.1,30.67175536]
[1737664469006,1.0,258.19,258.07,30.67175536]
[1737664469217,1.0,258.1,258.02,30.67175536]
[1737664469615,1.0,258.1,258.0,0.063]
[1737664469920,1.0,258.09,258.0,0.063]
[1737664470122,1.0,258.22,258.0,3.9388]
[1737664470424,1.0,258.24,258.0,13.6287]
[1737664470618,1.0,258.23,258.0,33.0085]
[1737664470801,2.0,258.22,258.12,30.67175536]
[1737664471002,1.0,258.2,258.1,30.67175536]
[1737664471197,1.0,258.19,258.11,30.67175536]
[1737664471399,1.0,258.26,258.13,30.67175536]
[1737664471601,2.0,258.27,258.13,30.67175536]
[1737664471826,2.27104144,258.19,258.13,30.41741586]
[1737664472021,1.0,258.05,258.0,0.063]
[1737664472227,1.0,257.96,257.78,3.8792]
[1737664472406,1.0,257.85,257.6,41.84]
[1737664472605,1.0,257.84,257.54,13.0383]
[1737664472926,1.0,257.85,257.66,3.881]
[1737664473103,2.0,257.86,257.74,30.41741586]
[1737664473299,30.41741586,257.88,257.74,30.41741586]
[1737664473523,1.0,257.91,257.78,30.41741586]
[1737664473713,1.0,257.88,257.76,30.41741586]
[1737664473908,1.0,257.8,257.73,0.063]
[1737664474100,1.0,257.83,257.73,0.063]
[1737664474296,1.0,257.75,257.73,0.063]
[1737664474499,1.0,257.87,257.73,0.063]
[1737664474711,1.0,257.81,257.73,0.063]
[1737664474912,30.41741586,257.82,257.73,0.063]
[1737664475123,30.41741586,257.94,257.8,30.41741586]
[1737664475333,30.41741586,257.94,257.74,3.8798]
[1737664475334,1.0,257.87,257.74,34.29721586]
[1737664475629,1.0,257.83,257.73,0.063]
[1737664475806,2.0,257.83,257.73,0.063]
[1737664476006,1.0,257.78,257.73,0.063]
[1737664476203,1.0,257.74,257.73,0.063]
[1737664476408,30.5345518,257.75,257.73,0.063]
[1737664476622,31.5345518,257.75,257.55,3.8826]
[1737664476812,30.5345518,257.58,257.49,3.8836]
[1737664477017,1.0,257.56,257.46,3.8839]
[1737664477223,1.0,257.59,257.48,34.4182518]
[1737664477531,1.0,257.64,257.53,30.5345518]
[1737664477731,30.5345518,257.62,257.5,30.5345518]
[1737664478030,30.5345518,257.55,257.48,3.8837]
[1737664478328,30.5345518,257.53,257.48,3.8837]
[1737664478528,30.5345518,257.6,257.48,3.8837]
[1737664478820,1.0,257.62,257.49,30.5345518]
[1737664479016,30.5345518,257.63,257.52,20.0]
[1737664479213,1.0,257.63,257.54,30.5345518]
[1737664479419,1.0,257.61,257.5,30.5345518]
[1737664479615,2.0,257.56,257.47,0.063]
[1737664479826,1.0,257.55,257.47,0.063]
[1737664480009,1.0,257.51,257.47,0.063]
[1737664480214,30.5345518,257.66,257.47,0.063]
[1737664480215,1.0,257.52,257.47,0.063]
[1737664480403,30.5345518,257.66,257.47,0.063]
[1737664480404,2.0,257.57,257.48,3.8837]
[1737664480604,1.0,257.6,257.48,3.8837]
[1737664480798,1.0,257.58,257.48,3.8837]
[1737664481003,1.0,257.58,257.51,30.5345518]
[1737664481206,1.0,257.56,257.49,30.5345518]
[1737664481506,1.0,257.61,257.49,30.5345518]
[1737664481711,2.2789645,257.62,257.55,30.5345518]
[1737664481900,2.2789645,257.62,257.51,20.0]
[1737664481901,2.2789645,257.62,257.59,30.5345518]
[1737664482123,2.2789645,257.62,257.57,3.8824]
[1737664482433,1.0,257.6,257.52,3.8831]
[1737664482631,1.0,257.55,257.48,3.8837]
[1737664482805,1.0,257.49,257.47,0.063]
[1737664483004,1.0,257.52,257.47,0.063]
[1737664483336,1.0,257.51,257.47,0.063]
[1737664483527,1.0,257.48,257.47,0.063]
[1737664483706,1.0,257.51,257.47,0.063]
[1737664483901,1.0,257.48,257.47,0.063]
[1737664484212,1.0,257.65,257.47,0.063]
[1737664484213,1.0,257.49,257.47,3.9469]
[1737664484415,1.0,257.56,257.47,0.063]
[1737664484726,1.0,257.61,257.48,3.8837]
[1737664484904,1.0,257.59,257.48,3.8837]
[1737664485105,1.0,257.51,257.47,0.063]
[1737664485303,3.8813,257.65,257.47,0.063]
[1737664485304,2.0,257.52,257.51,0.063]
[1737664485521,2.0,257.52,257.47,0.063]
[1737664485705,1.0,257.49,257.47,0.063]
[1737664485907,1.0,257.48,257.47,0.063]
[1737664486133,32.5345518,257.51,257.47,0.063]
[1737664486438,2.0,257.48,257.47,0.063]
[1737664486730,1.0,257.48,257.47,0.063]
[1737664487030,2.0,257.48,257.47,0.063]
[1737664487212,2.0,257.48,257.41,0.063]
[1737664487213,1.0,257.42,257.41,0.063]
[1737664487831,1.0,257.47,257.41,3.9477]
[1737664488037,1.0,257.54,257.44,30.5345518]
[1737664488334,34.0927518,257.66,257.45,13.5948]
[1737664488335,3.5582,257.66,257.45,13.5948]
[1737664488514,1.0,257.63,257.53,30.5345518]
[1737664488715,2.0,257.59,257.53,30.5345518]
[1737664488905,1.0,257.56,257.48,30.5345518]
[1737664489102,1.0,257.51,257.46,30.5345518]
[1737664489319,1.0,257.55,257.46,30.5345518]
[1737664489531,1.0,257.57,257.48,30.5345518]
[1737664489706,1.0,257.54,257.46,30.5345518]
[1737664489902,1.0,257.52,257.46,30.5345518]
[1737664490120,1.0,257.51,257.45,3.8842]
[1737664490317,1.0,257.58,257.5,30.5345518]
[1737664490516,1.0,257.58,257.45,3.8842]
[1737664490517,2.0,257.64,257.52,30.5345518]
[1737664490723,1.0,257.6,257.52,30.5345518]
[1737664491229,1.0,257.55,257.48,30.5345518]
[1737664491428,1.0,257.64,257.54,30.5345518]
[1737664491737,1.0,257.58,257.5,30.5345518]
[1737664491909,1.0,257.63,257.54,30.5345518]
[1737664492235,1.0,257.53,257.46,30.5345518]
[1737664492408,1.0,257.57,257.49,30.5345518]
[1737664492728,1.0,257.62,257.51,30.5345518]
[1737664493032,1.0,257.52,257.51,30.5345518]
[1737664493241,1.0,257.51,257.47,30.5345518]
[1737664493752,1.0,257.45,257.42,3.8847]
[1737664494032,2.0,257.49,257.42,3.8847]
[1737664494237,1.0,257.43,257.42,3.8847]
[1737664494425,1.0,257.47,257.41,0.063]
[1737664494826,2.0,257.42,257.41,0.063]
[1737664495133,1.0,257.38,257.29,30.5345518]
[1737664495438,2.0,257.35,257.27,34.4213518]
[1737664495634,1.0,257.3,257.27,3.8868]
[1737664495846,1.0,257.38,257.29,30.5345518]
[1737664496136,1.0,257.46,257.41,3.8848]
[1737664496341,2.0,257.45,257.41,3.8848]
[1737664496538,1.0,257.5,257.26,20.0]
[1737664496846,1.0,257.43,257.36,30.5345518]
[1737664497011,1.0,257.46,257.39,30.5345518]
[1737664497217,1.0,257.42,257.33,30.5345518]
[1737664497436,30.5345518,257.53,257.29,30.5345518]
[1737664497437,1.0,257.35,257.29,30.5345518]
[1737664497736,1.0,257.4,257.31,30.5345518]
[1737664497924,1.0,257.41,257.35,30.5345518]
[1737664498235,1.0,257.42,257.33,30.5345518]
[1737664498416,1.0,257.42,257.32,3.8862]
[1737664498746,1.0,257.35,257.23,0.063]
[1737664498932,1.0,257.24,257.23,0.063]
[1737664499243,1.0,257.2,257.05,3.8902]
[1737664499443,4.767,257.35,257.18,30.5345518]
[1737664499444,1.0,257.22,257.18,30.5345518]
[1737664499612,1.0,257.22,257.2,30.5345518]
[1737664499814,1.0,257.29,257.21,30.5345518]
[1737664500019,1.0,257.24,257.19,30.5345518]
[1737664500234,1.0,257.19,257.15,34.4232518]
[1737664500425,1.0,257.24,257.17,30.5345518]
[1737664500629,1.0,257.3,257.06,23.776884]
[1737664500942,1.0,257.13,257.05,13.6159]
[1737664501118,1.0,257.15,257.05,13.6159]
[1737664501317,1.0,257.11,257.05,3.8902]
[1737664501541,1.0,257.17,257.05,3.8902]
[1737664501838,1.0,257.29,257.15,30.5345518]
[1737664502010,1.0,257.29,257.17,30.5345518]
[1737664502211,30.5345518,257.26,257.18,3.8883]
[1737664502436,1.0,257.18,257.11,3.8893]
[1737664502644,1.0,257.15,257.04,30.5975518]
[1737664502847,1.0,257.09,257.04,0.063]
[1737664503019,1.0,257.25,257.04,0.063]
[1737664503020,1.0,257.08,257.04,0.063]
[1737664503223,1.0,257.13,257.04,0.063]
[1737664503438,1.0,257.13,257.04,3.9532]
[1737664503627,31.5345518,257.15,257.04,3.9532]
[1737664503923,30.5345518,257.15,257.04,3.9532]
[1737664504126,30.5345518,257.23,257.11,30.5345518]
[1737664504428,1.0,257.37,257.17,23.776884]
[1737664504632,1.0,257.27,257.16,20.0]
[1737664505042,1.0,257.3,257.09,20.0]
[1737664505249,1.0,257.32,257.14,1.0]
[1737664505559,1.0,257.26,257.16,30.5345518]
[1737664505727,1.0,257.18,257.1,30.5345518]
[1737664505923,1.0,257.15,257.1,30.5345518]
[1737664506239,1.0,257.13,257.06,34.4246518]
[1737664506428,30.5345518,257.27,257.06,3.8901]
[1737664506429,1.0,257.11,257.06,3.8901]
[1737664506956,1.0,257.12,257.06,3.8901]
[1737664507136,1.0,257.16,257.08,30.5345518]
[1737664507456,1.0,257.19,257.12,30.5345518]
[1737664507757,1.0,257.1,257.06,3.8901]
[1737664508129,1.0,257.2,257.09,30.5345518]
[1737664508327,1.0,257.2,257.09,34.4241518]
[1737664508566,1.0,257.18,257.09,34.4241518]
[1737664508734,1.0,257.09,257.05,34.4247518]
[1737664508931,1.0,257.17,257.08,30.5345518]
[1737664509158,1.0,257.19,257.12,30.5345518]
[1737664509332,1.0,257.2,257.1,30.5345518]
[1737664509861,1.0,257.08,257.05,3.9532]
[1737664510062,1.0,257.09,257.05,3.9532]
[1737664510353,1.0,257.11,257.05,34.4877518]
[1737664510560,0.03,257.17,257.09,30.5345518]
[1737664511063,1.0,257.15,257.11,30.5345518]
[1737664511354,1.0,257.06,257.05,0.063]
[1737664511729,31.5345518,257.06,257.04,0.063]
[1737664512033,1.0,256.94,256.92,0.063]
[1737664512663,1.0,256.96,256.92,0.063]
[1737664512846,1.0,256.93,256.92,0.063]
[1737664513165,1.0,256.85,256.8,0.063]
[1737664513542,20.0,256.97,256.8,0.063]
[1737664513543,1.0,256.81,256.8,0.063]
[1737664514332,1.0,256.62,256.57,32.0930988]
[1737664514532,51.5345518,256.59,256.5,3.8984]
[1737664514732,1.0,256.55,256.33,1.063]
[1737664515035,1.0,256.55,256.47,3.8989]
[1737664515243,1.0,256.55,256.54,3.961]
[1737664515457,1.0,256.62,256.54,3.961]
[1737664515644,1.0,256.65,256.54,3.961]
[1737664515843,31.5345518,256.6,256.54,0.063]
[1737664516161,31.5345518,256.56,256.54,0.063]
[1737664516336,1.0,256.37,256.32,3.9013]
[1737664516668,1.0,256.4,256.33,3.9642]
[1737664516831,1.0,256.42,256.33,3.9642]
[1737664517031,16.279,256.35,256.33,0.063]
[1737664517339,1.0,256.34,256.33,0.063]
[1737664517634,31.5345518,256.34,256.33,0.063]
[1737664517847,16.279,256.35,256.33,0.063]
[1737664517848,3.6104,256.35,256.33,0.063]
[1737664518165,31.5345518,256.47,256.34,34.4355518]
[1737664518351,1.0,256.47,256.34,3.901]
[1737664518662,1.0,256.49,256.34,13.6536]
[1737664518838,1.0,256.47,256.34,13.6536]
[1737664519037,1.0,256.5,256.35,23.776884]
[1737664519248,1.0,256.52,256.41,30.5345518]
[1737664519447,1.0,256.54,256.48,30.5345518]
[1737664519647,1.0,256.55,256.44,30.5345518]
[1737664519965,1.0,256.57,256.51,30.5345518]
[1737664520264,1.0,256.46,256.43,30.5345518]
[1737664520431,1.0,256.48,256.44,3.8995]
[1737664520631,1.0,256.45,256.38,3.9003]
[1737664520857,1.0,256.54,256.43,30.5345518]
[1737664521036,1.0,256.6,256.38,13.6514]
[1737664521367,1.0,256.57,256.41,20.0]
[1737664521652,1.0,256.55,256.39,23.776884]
[1737664521862,1.0,256.55,256.39,335.776884]
[1737664522237,1.0,256.53,256.49,30.5345518]
[1737664522434,1.0,256.53,256.48,3.8989]
[1737664522764,1.0,256.52,256.48,3.8989]
[1737664523065,1.0,256.52,256.49,30.5345518]
[1737664523366,0.03,256.59,256.51,30.5345518]
[1737664523535,0.03,256.59,256.56,30.5345518]
[1737664523934,1.0,256.55,256.48,13.6462]
[1737664524140,1.0,256.55,256.51,30.5345518]
[1737664524442,1.0,256.65,256.43,1.0]
[1737664524767,1.0,256.58,256.51,30.5345518]
[1737664524932,1.0,256.48,256.47,30.5345518]
[1737664525134,1.0,256.48,256.38,29.249004]
[1737664525135,1.0,256.49,256.38,13.6515]
[1737664525336,1.0,256.49,256.48,30.5345518]
[1737664525770,1.0,256.49,256.38,13.6515]
[1737664525969,1.0,256.5,256.38,33.1538]
[1737664526140,1.0,256.61,256.41,20.0]
[1737664526352,1.0,256.63,256.58,30.5345518]
[1737664526542,1.0,256.67,256.56,30.5345518]
[1737664526746,1.0,256.64,256.56,30.5345518]
[1737664526942,1.0,256.68,256.63,30.5345518]
[1737664527163,1.0,256.58,256.5,13.6449]
[1737664527462,1.0,256.57,256.5,13.6449]
[1737664527638,1.0,256.59,256.5,13.6449]
[1737664527843,1.0,256.57,256.5,13.6449]
[1737664528149,1.0,256.58,256.5,13.6449]
[1737664528343,1.0,256.67,256.57,30.5345518]
[1737664528547,3.5947,256.69,256.66,30.5345518]
[1737664528753,4.5947,256.69,256.62,30.5345518]
[1737664528960,1.0,256.61,256.6,30.5345518]
[1737664529159,1.0,256.55,256.5,13.6449]
[1737664529348,1.0,256.51,256.5,3.8986]
[1737664529547,1.0,256.51,256.45,13.6477]
[1737664529950,1.0,256.46,256.45,3.8993]
[1737664530156,1.0,256.41,256.32,0.063]
[1737664530469,1.0,256.41,256.4,3.9001]
[1737664530766,1.0,256.34,256.32,0.063]
[1737664531678,1.0,256.22,256.11,3.9045]
[1737664531974,3.8716,256.42,256.11,3.9045]
[1737664531975,1.0,256.25,256.11,3.9045]
[1737664532142,1.0,256.24,256.17,30.5345518]
[1737664532470,1.0,256.18,256.11,9.7614]
[1737664532770,1.0,256.18,256.12,30.5345518]
[1737664532952,1.0,256.18,256.14,30.5345518]
[1737664533153,1.0,256.14,256.09,44.2014518]
[1737664533364,1.0,256.14,256.11,30.5345518]
[1737664533535,1.0,256.3,256.09,13.6669]
[1737664533536,1.0,256.1,256.09,3.9048]
[1737664533734,1.0,256.12,256.09,3.9048]
[1737664533939,1.0,256.33,256.09,3.9048]
[1737664533940,1.0,256.17,256.09,3.9048]
[1737664534146,1.0,256.1,255.95,19.5345]
[1737664534345,1.0,256.14,256.07,3.9681]
[1737664534542,1.0,256.12,256.07,0.063]
[1737664534745,19.4985,256.43,256.08,3.905]
[1737664534746,1.0,256.18,256.08,3.905]
[1737664534966,1.0,256.16,256.08,3.905]
[1737664535356,1.0,256.12,256.08,3.905]
[1737664535552,1.0,256.08,256.07,0.063]
[1737664535871,1.0,255.99,255.88,30.5345518]
[1737664536071,1.0,255.91,255.85,3.9085]
[1737664536240,1.0,255.9,255.71,30.5345518]
[1737664536441,1.0,255.9,255.73,9.7757]
[1737664536637,1.0,256.02,255.79,1.0]
[1737664536837,4.6764,256.15,255.89,23.776884]
[1737664537040,3.6764,256.15,255.96,1.0]
[1737664537237,1.0,256.18,255.92,1.0]
[1737664537466,1.0,256.15,256.06,30.5345518]
[1737664537775,1.0,256.24,256.12,30.5345518]
[1737664537952,1.0,256.26,256.02,1.0]
[1737664538141,1.0,256.24,256.02,1.0]
[1737664538341,1.0,256.28,256.07,1.0]
[1737664538544,1.0,256.32,256.15,20.0]
[1737664538749,3.5909,256.44,256.17,1.0]
[1737664539051,30.5345518,256.51,256.39,23.776884]
[1737664539272,30.5345518,256.47,256.35,30.5345518]
[1737664539577,12.3686,256.6,256.23,30.5345518]
[1737664539578,30.5345518,256.43,256.31,30.5345518]
[1737664539879,30.5345518,256.41,256.27,30.5345518]
[1737664540047,1.0,256.55,256.24,20.0]
[1737664540247,12.3686,256.6,256.29,1.0]
[1737664540468,12.3686,256.6,256.34,1.0]
[1737664540675,1.0,256.59,256.38,23.776884]
[1737664540981,30.5345518,256.71,256.57,30.5345518]
[1737664541291,30.5345518,256.65,256.52,30.5345518]
[1737664541450,4.8952,256.72,256.39,12.3686]
[1737664541649,4.8952,256.72,256.43,20.0]
[1737664541650,1.0,256.72,256.43,20.0]
[1737664541973,3.7084,256.77,256.54,20.0]
[1737664542174,12.9994,256.88,256.63,20.0]
[1737664542381,1.0,256.85,256.64,23.776884]
[1737664542586,1.0,256.92,256.65,13.6371]
[1737664542798,1.0,256.84,256.53,3.8981]
[1737664542961,5.82365177,256.96,256.53,3.8981]
[1737664542962,30.5345518,256.93,256.8,30.5345518]
[1737664543157,30.5345518,256.9,256.77,30.5345518]
[1737664543382,1.0,256.88,256.62,30.5345518]
[1737664543565,0.03,256.78,256.62,30.5345518]
[1737664543886,0.03,256.78,256.63,23.776884]
[1737664544258,0.03,256.78,256.62,30.5345518]
[1737664544465,0.03,256.78,256.53,34.1343]
[1737664544683,0.03,256.78,256.59,1.0]
[1737664544984,0.03,256.78,256.77,30.5345518]
[1737664545387,0.03,256.78,256.75,30.5345518]
[1737664545584,0.03,256.78,256.72,30.5345518]
[1737664545782,0.03,256.78,256.53,52.6251]
[1737664545783,0.03,256.78,256.57,1.0]
[1737664545992,0.03,256.78,256.53,52.6251]
[1737664546167,0.03,256.78,256.53,33.1343]
[1737664546371,0.03,256.78,256.62,23.776884]
[1737664546573,0.03,256.78,256.63,3.8966]
[1737664546976,3.7775,256.77,256.4,1.0]
[1737664547170,30.76432927,256.72,256.58,30.76432927]
[1737664547373,30.76432927,256.7,256.58,30.76432927]
[1737664547695,30.76432927,256.74,256.6,30.76432927]
[1737664547873,20.0,256.63,256.5,30.76432927]
[1737664548059,30.76432927,256.61,256.48,30.76432927]
[1737664548267,30.76432927,256.57,256.46,30.76432927]
[1737664548491,30.76432927,256.55,256.42,30.76432927]
[1737664548690,3.8965,256.64,256.38,23.776884]
[1737664548997,3.8956,256.7,256.52,30.76432927]
[1737664549185,12.3624,256.71,256.59,30.76432927]